bitfinex/quotes_ETHUSD_20250815
["timestamp","ask_amount","ask_price","bid_price","bid_amount"]
[1755299054855,3.0,4473.5,4471.4,5.37]
[1755299055046,0.55,4473.2,4471.9,2.23615975]
[1755299055250,2.23565725,4473.0,4471.9,2.23615975]
[1755299055486,3.0,4472.8,4469.5,0.4551]
[1755299055689,0.112,4471.7,4471.1,2.23658607]
[1755299055848,0.112,4471.7,4471.2,2.23653002]
[1755299056051,0.112,4471.7,4471.0,0.112]
[1755299056453,3.87,4472.6,4471.6,0.112]
[1755299056454,0.112,4472.6,4471.6,0.112]
[1755299056656,0.112,4473.1,4471.7,0.4551]
[1755299056990,33.0,4473.0,4471.4,2.23640223]
[1755299057164,3.0,4472.8,4470.9,0.4551]
[1755299057351,30.4906,4472.9,4470.9,0.4551]
[1755299057352,2.23594223,4472.4,4471.3,2.23647429]
[1755299057548,0.112,4471.6,4471.4,2.23643193]
[1755299058097,0.112,4471.6,4471.1,2.23657419]
[1755299058098,0.112,4471.6,4471.1,2.23658188]
[1755299058310,0.112,4471.6,4471.1,2.23658607]
[1755299058472,0.112,4471.6,4471.2,0.4551]
[1755299058794,4.3606,4473.3,4471.5,0.112]
[1755299058997,0.112,4471.6,4470.6,0.4551]
[1755299059164,0.112,4471.6,4471.2,2.23653605]
[1755299059372,2.23598595,4472.3,4470.6,0.4551]
[1755299059676,0.112,4471.2,4470.8,2.23673615]
[1755299059875,0.112,4471.2,4470.6,0.5671]
[1755299060490,0.112,4471.2,4470.9,2.23667947]
[1755299060689,0.112,4471.2,4470.6,0.112]
[1755299061378,0.112,4471.2,4470.8,2.23669328]
[1755299061580,0.112,4471.2,4470.5,0.112]
[1755299061796,2.23609479,4472.1,4470.4,0.4551]
[1755299061955,0.112,4471.4,4470.9,2.23668612]
[1755299062150,0.112,4471.4,4470.8,0.112]
[1755299062151,0.112,4471.4,4471.0,2.23663609]
[1755299062483,0.112,4471.4,4471.2,2.23649808]
[1755299062702,0.112,4471.4,4470.8,0.112]
[1755299062995,0.112,4471.4,4471.3,2.23648603]
[1755299063197,0.112,4471.4,4471.2,2.23653276]
[1755299063434,30.4906,4471.3,4470.3,2.23794625]
[1755299063583,0.112,4471.0,4470.3,2.23794625]
[1755299063788,0.112,4470.7,4470.3,0.001]
[1755299064300,0.112,4470.7,4470.4,2.23693629]
[1755299064484,0.112,4471.4,4470.5,0.5671]
[1755299064684,0.112,4471.4,4470.8,0.112]
[1755299065085,0.112,4471.4,4470.3,3.859]
[1755299065086,0.002,4472.4,4472.3,2.23598595]
[1755299065909,0.002,4472.4,4472.3,2.7134458]
[1755299066122,0.112,4473.5,4473.4,2.23543613]
[1755299066327,0.112,4473.9,4473.0,2.23563603]
[1755299066510,0.4339,4474.6,4473.2,2.2355216]
[1755299066710,3.0,4473.1,4471.8,0.02236235]
[1755299067023,3.0,4473.1,4470.4,0.4106]
[1755299067024,2.23606452,4472.2,4470.1,3.965]
[1755299067186,3.0,4472.0,4470.4,0.4551]
[1755299067394,0.112,4471.7,4470.9,2.23667822]
[1755299067600,0.112,4471.7,4471.0,2.23663323]
[1755299067802,0.112,4471.7,4470.9,0.112]
[1755299068006,0.112,4471.7,4470.1,0.04]
[1755299068007,0.112,4471.3,4470.7,0.112]
[1755299068210,0.112,4471.3,4470.9,2.23668471]
[1755299068505,0.112,4471.3,4471.0,2.23663406]
[1755299068806,0.112,4471.3,4471.1,2.23657538]
[1755299069124,0.59001507,4472.2,4470.7,0.112]
[1755299069125,0.112,4471.5,4470.7,0.112]
[1755299069309,0.112,4471.5,4470.9,2.23668453]
[1755299069536,0.112,4471.5,4471.0,2.23663208]
[1755299069731,0.112,4471.5,4470.9,2.23667755]
[1755299069889,0.112,4471.5,4470.7,0.112]
[1755299070090,0.59001507,4471.1,4470.3,0.001]
[1755299070312,2.23672377,4470.9,4470.3,0.001]
[1755299070522,2.23673615,4470.8,4470.3,0.001]
[1755299070719,2.23688864,4470.5,4470.3,0.001]
[1755299070888,4.06585029,4470.8,4470.3,0.001]
[1755299071091,3.0,4470.8,4470.3,0.001]
[1755299071291,3.96643522,4470.8,4470.3,0.001]
[1755299071507,0.47583522,4470.7,4470.3,0.001]
[1755299072032,2.23683621,4470.6,4470.3,0.001]
[1755299072187,0.47583522,4470.5,4470.3,0.001]
[1755299072393,0.47583522,4470.6,4470.3,0.001]
[1755299072602,0.47583522,4470.5,4470.3,0.001]
[1755299072794,0.47583522,4470.6,4470.3,0.001]
[1755299073012,0.47583522,4470.5,4470.3,0.001]
[1755299073324,0.47583522,4470.4,4470.3,0.001]
[1755299073644,0.47583522,4470.6,4470.4,0.4551]
[1755299073949,1.61955859,4472.0,4470.3,2.23798633]
[1755299073950,0.47583522,4471.9,4470.5,1.13500863]
[1755299074241,0.47583522,4471.8,4471.6,2.23633248]
[1755299074450,0.47583522,4471.7,4471.6,2.23633248]
[1755299074789,0.47583522,4471.7,4471.6,2.69143248]
[1755299075046,0.47583522,4471.7,4471.4,2.23642001]
[1755299075247,0.47583522,4471.6,4470.8,3.903]
[1755299075398,0.47583522,4471.5,4471.4,2.23643601]
[1755299075799,0.96643522,4471.5,4470.5,2.50616359]
[1755299076027,0.60018207,4470.9,4470.3,2.23796626]
[1755299076211,0.47583522,4470.8,4470.3,0.001]
[1755299076413,0.60018207,4470.5,4470.3,0.001]
[1755299076745,0.47583522,4470.4,4470.3,0.001]
[1755299077534,1.07601729,4470.4,4470.3,0.001]
[1755299077697,3.4339,4471.5,4470.3,0.001]
[1755299077898,3.0,4471.3,4470.3,0.001]
[1755299078136,2.23676405,4470.8,4470.3,0.001]
[1755299078725,3.0,4470.7,4470.3,0.001]
[1755299079642,0.4339,4470.7,4470.3,0.001]
[1755299079817,0.8912,4470.6,4470.3,0.001]
[1755299080000,0.112,4470.4,4470.3,0.001]
[1755299080194,2.34893629,4470.4,4470.3,0.001]
[1755299080500,3.112,4470.4,4470.3,0.001]
[1755299080851,0.112,4471.4,4470.4,2.23693629]
[1755299081151,0.112,4471.0,4470.8,2.23669851]
[1755299081442,0.112,4471.0,4470.9,2.23668612]
[1755299081598,0.112,4471.4,4470.9,2.23668612]
[1755299082330,0.8912,4472.1,4470.4,0.33078363]
[1755299082539,0.112,4471.3,4470.6,2.34883621]
[1755299082707,0.112,4471.3,4470.6,0.112]
[1755299083032,0.112,4471.0,4470.5,0.46639836]
[1755299083191,0.112,4471.0,4470.3,0.113]
[1755299083397,0.112,4471.0,4470.3,2.34998493]
[1755299083637,3.0,4471.5,4470.3,0.001]
[1755299083842,0.112,4470.7,4470.3,0.001]
[1755299084399,30.0,4470.6,4470.3,0.001]
[1755299084725,0.112,4470.7,4470.3,0.001]
[1755299085333,0.112,4470.4,4470.3,0.001]
[1755299086501,0.112,4470.6,4470.3,2.23794191]
[1755299086696,0.112,4470.6,4470.4,0.45149865]
[1755299087406,0.112,4470.6,4470.3,0.001]
[1755299088618,10.53378242,4471.0,4470.3,0.001]
[1755299088934,3.1280391,4470.6,4470.3,0.001]
[1755299089301,0.8912,4470.6,4470.3,0.001]
[1755299089703,0.48108196,4470.5,4470.3,0.001]
[1755299089904,0.48108196,4470.4,4470.3,0.001]
[1755299090202,0.8912,4470.6,4470.3,0.001]
[1755299090407,5.23693629,4470.4,4470.3,0.001]
[1755299090626,35.23693629,4470.4,4470.3,0.001]
[1755299090835,36.12813629,4470.4,4470.3,0.001]
[1755299091445,2.23703637,4470.2,4470.1,0.04]
[1755299091738,5.23713646,4470.0,4469.8,0.001]
[1755299091945,33.0,4469.9,4469.8,0.001]
[1755299092142,3.55,4469.8,4468.1,0.04]
[1755299092442,15.77131933,4469.2,4468.1,0.04]
[1755299092639,46.80243613,4469.2,4468.1,0.04]
[1755299092806,2.23763705,4469.0,4468.1,0.04]
[1755299093000,0.55,4468.8,4468.1,0.04]
[1755299093242,3.0,4468.9,4468.1,0.04]
[1755299093243,10.53378242,4468.4,4468.1,0.04]
[1755299093450,2.23803768,4468.2,4468.1,0.04]
[1755299093651,32.71915448,4468.2,4468.1,0.04]
[1755299094551,33.61035448,4468.2,4468.1,0.04]
[1755299095118,34.16035448,4468.2,4468.1,0.04]
[1755299095552,32.71915448,4468.2,4468.1,0.04]
[1755299096257,34.16035448,4468.2,4468.1,0.04]
[1755299097539,0.4811168,4468.2,4468.1,0.04]
[1755299097750,2.2372389,4469.8,4468.1,0.04]
[1755299097751,3.857,4468.7,4468.1,0.04]
[1755299097963,33.854,4468.6,4468.1,0.04]
[1755299098119,10.53378242,4468.3,4468.1,0.041]
[1755299098431,2.78853868,4467.2,4467.1,0.04]
[1755299098630,40.64578242,4467.2,4467.1,0.04]
[1755299098835,32.35053868,4467.2,4467.1,0.04]
[1755299099020,21.40002777,4467.2,4467.1,2.27858879]
[1755299099224,0.4339,4470.7,4467.1,2.27858879]
[1755299099225,0.112,4468.6,4468.5,2.23784577]
[1755299099559,0.4339,4470.0,4468.5,2.23784577]
[1755299099560,0.672808,4470.0,4468.5,0.8679]
[1755299099723,0.112,4469.4,4468.6,3.901]
[1755299099919,0.112,4469.4,4468.5,0.9799]
[1755299100356,0.112,4469.4,4469.2,2.23753565]
[1755299100559,0.112,4469.4,4469.2,0.22375357]
[1755299100730,0.112,4469.4,4468.6,2.23779994]
[1755299100945,0.112,4469.4,4468.5,4.8799]
[1755299100946,0.112,4469.4,4468.5,3.9]
[1755299101128,0.112,4470.0,4469.9,2.2371792]
[1755299101333,0.112,4470.0,4469.8,2.2372298]
[1755299101563,0.112,4470.0,4469.9,2.23718651]
[1755299101770,0.04,4470.4,4470.1,2.23707216]
[1755299102066,0.04,4470.4,4470.3,2.23698633]
[1755299102563,0.04,4470.4,4470.3,7.06925619]
[1755299102769,0.04,4470.4,4470.3,7.04688633]
[1755299103271,1e-08,4471.5,4471.4,2.23643601]
[1755299103470,1e-08,4471.5,4471.4,6.35107961]
[1755299103671,1e-08,4472.4,4471.8,2.23623596]
[1755299103862,1e-08,4472.4,4472.2,0.55]
[1755299104033,1e-08,4472.4,4472.3,2.34798595]
[1755299104240,1e-08,4472.4,4472.3,6.78898595]
[1755299104436,1e-08,4472.4,4472.3,8.70118141]
[1755299104849,1e-08,4473.8,4473.7,2.23528622]
[1755299105140,1e-08,4473.8,4473.7,6.69663908]
[1755299105483,0.47749589,4477.3,4473.7,6.69663908]
[1755299105484,0.112,4476.3,4475.0,2.23463687]
[1755299105634,30.671643,4476.2,4471.1,0.1]
[1755299105840,30.671643,4476.2,4475.0,0.112]
[1755299105841,0.112,4475.6,4475.0,0.112]
[1755299106152,0.112,4475.6,4475.0,4.003]
[1755299106467,0.112,4475.9,4475.0,4.003]
[1755299106968,0.112,4475.9,4475.1,3.889]
[1755299107269,0.671643,4476.2,4475.2,2.234537]
[1755299107444,2.23408771,4476.1,4475.6,0.112]
[1755299107655,0.112,4475.9,4475.3,3.887]
[1755299107850,0.112,4475.5,4475.4,3.887]
[1755299108175,0.112,4475.5,4474.9,2.34667758]
[1755299108382,0.112,4475.5,4475.0,3.887]
[1755299108971,0.112,4475.5,4475.4,2.23443714]
[1755299109155,0.112,4475.8,4475.2,2.23449831]
[1755299109362,0.112,4475.8,4475.3,3.881]
[1755299109706,0.112,4475.8,4474.9,0.112]
[1755299109707,0.112,4475.8,4475.4,3.881]
[1755299110552,0.55,4474.3,4471.0,0.4549]
[1755299110882,2.23538616,4473.5,4471.7,0.112]
[1755299111084,0.55,4473.3,4471.7,2.34827437]
[1755299111284,0.112,4472.3,4471.8,2.23623099]
[1755299111480,0.062,4472.3,4471.9,0.4549]
[1755299111783,0.062,4472.3,4471.7,0.112]
[1755299112248,2.29798643,4472.3,4471.7,0.112]
[1755299112447,0.062,4472.3,4471.7,0.112]
[1755299112787,2.23492369,4474.5,4472.2,0.112]
[1755299112988,0.662,4473.6,4472.3,3.912]
[1755299113143,30.0,4473.5,4472.2,2.23602868]
[1755299113496,0.55,4473.4,4471.9,3.911]
[1755299113657,30.0,4473.3,4472.3,2.23594413]
[1755299113852,32.23544263,4473.4,4472.2,2.2360358]
[1755299114069,2.23561177,4473.1,4472.0,2.23613595]
[1755299114316,0.672239,4473.5,4471.9,3.911]
[1755299114490,0.4412,4474.3,4472.0,0.91046135]
[1755299114810,0.672071,4474.0,4472.2,2.23603595]
[1755299114957,2.23489224,4474.5,4472.4,2.23593596]
[1755299115157,30.4412,4474.4,4472.3,0.8881]
[1755299115358,2.23553856,4473.2,4472.3,3.915]
[1755299115595,0.672089,4473.9,4472.3,3.915]
[1755299115596,0.002,4472.8,4472.3,3.915]
[1755299115763,0.002,4472.8,4472.0,2.23609529]
[1755299115961,0.002,4472.8,4472.3,2.23598]
[1755299116261,0.002,4472.8,4472.4,3.915]
[1755299116460,2.23579078,4472.7,4471.7,2.23624336]
[1755299116693,0.002,4472.8,4472.0,2.23609057]
[1755299116990,0.002,4472.8,4471.8,3.913]
[1755299117154,0.002,4472.8,4471.9,0.8881]
[1755299117359,0.002,4472.8,4472.0,3.914]
[1755299117584,2.23579528,4472.7,4472.0,3.914]
[1755299117781,0.002,4472.8,4472.1,2.23608286]
[1755299117982,0.002,4472.8,4472.3,2.23596406]
[1755299118169,0.002,4472.8,4472.2,6.15199021]
[1755299118381,0.002,4472.8,4472.3,2.23598563]
[1755299118585,2.2357921,4472.7,4472.3,3.914]
[1755299118782,2.2357921,4472.7,4471.8,2.23619024]
[1755299119097,2.2357921,4472.7,4471.9,6.14618181]
[1755299119295,2.23578599,4472.7,4471.9,3.91]
[1755299119596,0.002,4472.8,4471.9,3.91]
[1755299119763,0.002,4472.8,4472.0,3.91]
[1755299119963,0.002,4472.8,4472.1,2.2360421]
[1755299120162,0.002,4472.8,4472.2,2.23602232]
[1755299120603,0.002,4472.8,4472.1,2.23608153]
[1755299120776,2.2377469,4472.8,4472.0,6.14612907]
[1755299120965,2.2377469,4472.8,4472.1,3.908]
[1755299121164,0.002,4472.8,4472.1,6.14407716]
[1755299121471,0.002,4472.8,4472.2,3.903]
[1755299122065,0.002,4472.8,4472.7,2.23578599]
[1755299122504,0.002,4472.8,4472.7,3.12388599]
[1755299122704,0.002,4472.8,4472.7,2.23578599]
[1755299122875,0.002,4472.8,4472.7,3.901]
[1755299123076,0.002,4472.8,4471.9,2.691037]
[1755299123266,0.114,4472.8,4472.0,3.899]
[1755299123785,0.114,4472.8,4472.4,2.23593577]
[1755299123962,0.114,4472.8,4472.1,2.23603895]
[1755299124163,0.114,4472.8,4472.2,3.899]
[1755299124396,0.114,4472.8,4471.9,0.112]
[1755299124568,0.114,4472.8,4471.7,2.23628597]
[1755299124569,0.112,4472.3,4471.7,2.23628597]
[1755299124774,0.112,4472.3,4471.8,3.893]
[1755299124976,0.112,4472.3,4472.0,2.23609501]
[1755299125287,0.112,4472.3,4472.2,2.23603595]
[1755299127281,0.112,4472.3,4472.2,6.12303595]
[1755299127474,0.002,4472.8,4472.7,2.23578599]
[1755299127920,0.002,4472.8,4472.7,3.882]
[1755299128069,0.114,4472.8,4472.7,3.882]
[1755299129083,0.114,4472.8,4472.7,6.11778599]
[1755299129590,0.002,4472.8,4472.7,6.11778599]
[1755299130003,0.002,4472.8,4472.7,7.00588599]
[1755299130306,1e-08,4472.8,4472.7,7.69464072]
[1755299130682,1e-08,4472.8,4472.7,7.80664072]
[1755299131906,1e-08,4472.8,4472.7,3.92464072]
[1755299132241,1e-08,4472.8,4472.7,3.94699857]
[1755299132409,1e-08,4473.3,4473.2,2.23553608]
[1755299132578,1e-08,4473.3,4473.2,6.10553608]
[1755299132783,1e-08,4473.3,4473.2,6.99363608]
[1755299133018,1e-08,4473.3,4473.2,3.23563608]
[1755299133173,1e-08,4473.3,4473.2,7.10263608]
[1755299133509,1e-08,4473.3,4473.2,8.03646038]
[1755299134692,1e-08,4473.3,4473.2,4.16946038]
[1755299134883,1e-08,4473.3,4473.2,8.03546038]
[1755299135083,1e-08,4473.3,4473.2,8.02946038]
[1755299135384,1e-08,4473.3,4473.2,4.16946038]
[1755299135774,1e-08,4473.3,4473.2,2.34753608]
[1755299135977,1e-08,4473.3,4473.2,2.23553608]
[1755299136190,0.44120001,4473.3,4473.2,3.855]
[1755299136576,0.44120001,4473.3,4472.7,0.112]
[1755299136912,0.112,4473.2,4473.0,2.23559916]
[1755299137479,0.112,4473.2,4472.9,2.23568602]
[1755299137676,0.112,4473.2,4473.0,0.02235636]
[1755299137882,1e-08,4473.3,4473.2,2.23553608]
[1755299138077,1e-08,4473.3,4471.4,5.923]
[1755299138078,1e-08,4473.3,4473.1,0.112]
[1755299138314,0.47120001,4473.3,4473.2,3.852]
[1755299138826,1e-08,4473.3,4473.2,6.08753608]
[1755299140015,1e-08,4473.3,4473.2,6.19953608]
[1755299140494,1e-08,4473.3,4472.9,2.23563632]
[1755299140495,0.47120001,4473.3,4472.9,2.23563632]
[1755299140698,0.47120001,4473.3,4471.9,0.4447]
[1755299140699,0.4712,4473.2,4471.9,0.4447]
[1755299140899,0.4712,4473.2,4473.1,2.23558605]
[1755299141108,0.4712,4473.2,4473.1,6.08158605]
[1755299141333,0.4712,4473.2,4473.1,2.23558605]
[1755299141516,0.4712,4473.2,4473.1,6.08058605]
[1755299142300,0.4712,4473.2,4473.1,3.845]
[1755299142500,0.4712,4473.2,4473.1,6.08058605]
[1755299142738,0.4712,4473.2,4473.1,2.23558605]
[1755299142932,0.4712,4473.2,4473.1,6.07458605]
[1755299143130,0.4712,4473.2,4472.9,2.23568217]
[1755299143131,0.4712,4473.2,4472.9,2.23564216]
[1755299143318,1e-08,4473.3,4473.1,3.838]
[1755299143523,1e-08,4473.3,4473.2,2.23553608]
[1755299144247,1e-08,4473.3,4473.2,3.835]
[1755299144416,1e-08,4473.3,4473.2,6.07053608]
[1755299144612,0.47120001,4473.3,4473.2,3.833]
[1755299144811,0.92970001,4473.3,4473.2,3.832]
[1755299145715,0.92970001,4473.3,4472.5,2.23587689]
[1755299146046,0.92970001,4473.3,4472.6,6.06782621]
[1755299146207,0.92970001,4473.3,4472.6,2.23582621]
[1755299146407,0.92970001,4473.3,4472.9,2.23568408]
[1755299146605,0.47120001,4473.3,4473.0,3.828]
[1755299146937,0.47120001,4473.3,4472.7,2.23575033]
[1755299146938,0.9297,4473.2,4472.7,2.23573809]
[1755299147138,0.9297,4473.2,4472.8,3.828]
[1755299147139,0.4712,4473.1,4472.8,3.828]
[1755299147305,0.4712,4473.0,4472.8,3.828]
[1755299147505,1e-08,4473.3,4472.8,3.828]
[1755299148207,1e-08,4473.3,4473.1,2.23554992]
[1755299148434,1e-08,4473.3,4473.2,3.825]
[1755299148908,1e-08,4473.3,4473.2,6.06053608]
[1755299149960,1e-08,4473.3,4473.2,6.98233608]
[1755299150240,1e-08,4473.3,4473.2,6.97533241]
[1755299150415,1e-08,4473.3,4473.2,6.05353608]
[1755299150831,1e-08,4473.3,4473.2,6.16553608]
[1755299151043,1e-08,4473.3,4473.2,2.34753608]
[1755299151346,0.47120001,4473.3,4473.2,3.814]
[1755299151545,0.58320001,4473.3,4473.2,6.04953608]
[1755299151849,0.58320001,4473.3,4473.2,3.814]
[1755299152012,0.58320001,4473.3,4473.2,6.04953608]
[1755299152356,0.58320001,4473.3,4473.2,3.814]
[1755299154831,1.04170001,4473.3,4473.2,3.809]
[1755299155030,1e-08,4473.3,4473.2,6.04453608]
[1755299155548,1e-08,4473.3,4472.8,2.34768633]
[1755299155747,1e-08,4473.3,4472.6,0.001]
[1755299155748,0.4712,4473.2,4472.9,3.804]
[1755299155948,0.45850001,4473.3,4472.9,3.804]
[1755299156251,0.4712,4473.1,4472.9,6.03966679]
[1755299156450,0.4712,4473.1,4472.9,3.804]
[1755299156753,0.112,4472.9,4472.6,0.001]
[1755299157058,0.112,4472.9,4472.7,3.803]
[1755299158332,0.112,4472.9,4472.8,2.235736]
[1755299158661,1e-08,4473.3,4473.2,2.23553608]
[1755299158958,1e-08,4473.3,4473.2,6.03453608]
[1755299159149,0.11200001,4473.3,4473.2,6.03453608]
[1755299159460,0.11200001,4473.3,4473.2,3.799]
[1755299160426,0.11200001,4473.3,4473.2,6.03453608]
[1755299161421,1e-08,4473.3,4473.2,7.78335317]
[1755299161653,1e-08,4473.3,4473.2,7.89535317]
[1755299162863,1e-08,4473.3,4473.2,7.88435317]
[1755299163959,1e-08,4473.3,4472.6,0.001]
[1755299164161,0.112,4473.1,4472.9,2.23568602]
[1755299164542,0.112,4473.1,4473.0,2.23563603]
[1755299164739,1e-08,4473.3,4472.8,2.23568668]
[1755299164952,0.112,4473.1,4472.9,3.782]
[1755299165269,0.112,4473.1,4473.0,6.01862068]
[1755299166041,0.112,4473.1,4473.0,2.23562068]
[1755299166235,0.112,4473.1,4473.0,6.01662068]
[1755299167527,1e-08,4473.3,4473.2,2.23553608]
[1755299167735,1e-08,4473.3,4473.2,6.01553608]
[1755299168238,1e-08,4473.3,4473.2,6.91743608]
[1755299168437,1e-08,4473.3,4473.2,6.01553608]
[1755299168861,1e-08,4473.3,4472.6,0.001]
[1755299169165,1e-08,4473.3,4473.1,2.23557989]
[1755299169351,1e-08,4473.3,4473.2,6.00853608]
[1755299170164,1e-08,4473.3,4473.2,3.775]
[1755299170350,0.45440001,4473.3,4473.2,3.775]
[1755299170878,1e-08,4473.3,4473.2,6.01053608]
[1755299171035,1e-08,4473.3,4473.2,3.775]
[1755299171234,1e-08,4473.3,4472.6,0.001]
[1755299171439,0.9096,4473.2,4472.7,3.771]
[1755299171670,0.4552,4473.2,4472.7,3.771]
[1755299171868,0.112,4472.8,4472.7,3.771]
[1755299172173,1e-08,4473.8,4473.7,2.23528622]
[1755299172374,0.60002289,4476.2,4473.7,12.28318622]
[1755299172533,0.4552,4476.5,4476.4,2.23393798]
[1755299172879,1.19820613,4477.6,4476.4,2.23393798]
[1755299172880,0.48195518,4478.1,4476.6,2.23383818]
[1755299173174,1.19820613,4478.9,4475.9,7.60514884]
[1755299173175,0.112,4477.6,4476.7,4.70523788]
[1755299173369,0.112,4477.6,4477.0,0.112]
[1755299173671,30.0,4477.5,4476.0,0.9019]
[1755299173858,2.23348893,4477.3,4476.1,3.781]
[1755299174183,0.112,4476.6,4476.0,0.112]
[1755299174361,30.9096,4476.5,4476.0,0.112]
[1755299174563,2.78408771,4476.1,4476.0,0.112]
[1755299174739,3.55,4476.0,4473.9,3.795]
[1755299174942,0.55,4475.3,4473.9,3.795]
[1755299175140,2.23475639,4474.8,4473.9,6.03017308]
[1755299175354,2.23501029,4474.3,4473.4,2.23539507]
[1755299175552,0.55,4474.6,4473.4,3.796]
[1755299175771,0.55,4474.4,4473.0,2.23561184]
[1755299175974,2.23517722,4474.0,4473.1,3.795]
[1755299176280,32.23522999,4473.9,4473.1,3.795]
[1755299176452,2.23522999,4473.9,4473.1,3.795]
[1755299176852,3.55,4474.2,4473.1,3.795]
[1755299177054,33.0,4474.1,4473.1,3.795]
[1755299177351,3.0,4474.2,4473.1,3.795]
[1755299177666,3.55,4474.6,4473.5,2.23535102]
[1755299177835,3.55,4474.6,4473.2,2.23553608]
[1755299177836,3.55,4474.6,4473.6,3.791]
[1755299178041,5.23490793,4474.5,4473.6,3.791]
[1755299178274,2.23493652,4474.4,4473.6,3.791]
[1755299178478,2.23508638,4474.1,4473.3,3.788]
[1755299178665,2.23513141,4474.1,4473.3,3.788]
[1755299178839,2.23508075,4474.2,4473.3,3.788]
[1755299179043,2.23513722,4474.0,4473.3,3.788]
[1755299179441,3.0,4474.2,4473.3,3.788]
[1755299179644,2.23527534,4473.8,4473.3,3.788]
[1755299180045,3.4544,4473.7,4473.3,3.788]
[1755299181280,2.23533865,4473.6,4473.3,3.788]
[1755299181644,0.4544,4473.5,4472.6,0.001]
[1755299181858,0.4544,4473.5,4472.7,3.784]
[1755299182059,3.0,4473.3,4472.7,3.784]
[1755299182350,0.002,4474.3,4472.7,4.1625]
[1755299182678,2.23503643,4474.2,4473.3,2.23547555]
[1755299182875,0.002,4474.3,4473.5,2.23534287]
[1755299183080,3.0,4474.1,4473.6,3.779]
[1755299183286,0.55,4473.9,4472.2,2.23601043]
[1755299183591,30.9096,4474.0,4472.1,0.9029]
[1755299183592,3.0,4473.7,4472.6,3.779]
[1755299183781,3.0,4473.5,4472.6,0.379]
[1755299183942,3.55,4473.0,4472.6,0.001]
[1755299184145,2.78578599,4472.7,4472.6,0.001]
[1755299184478,35.78578599,4472.7,4472.6,0.001]
[1755299184686,37.17558366,4472.7,4472.6,0.001]
[1755299184895,0.55,4472.2,4472.1,0.001]
[1755299185194,2.786386,4471.5,4471.4,0.001]
[1755299185363,50.0736058,4471.5,4471.4,0.001]
[1755299185565,50.0736058,4471.5,4471.4,1e-08]
[1755299185566,51.46305268,4471.5,4471.4,1e-08]
[1755299185893,5.78648603,4471.3,4470.1,0.04]
[1755299186092,36.26633291,4471.3,4470.1,0.04]
[1755299186292,37.17593291,4471.3,4470.1,0.04]
[1755299187290,50.98330583,4471.3,4470.1,0.04]
[1755299187890,2.23703637,4470.2,4470.1,0.04]
[1755299188203,35.78703637,4470.2,4470.1,0.04]
[1755299188380,36.69663637,4470.2,4470.1,0.04]
[1755299188708,36.69663637,4470.2,4469.1,0.04]
[1755299188709,2.23753691,4469.2,4469.1,1e-08]
[1755299188884,47.06875671,4469.2,4469.1,1e-08]
[1755299189081,50.97835671,4469.2,4469.1,1e-08]
[1755299189283,50.97835671,4469.2,4468.5,0.001]
[1755299189284,2.78783735,4468.6,4468.5,0.001]
[1755299189593,39.59083735,4468.6,4468.5,0.001]
[1755299189814,40.50043735,4468.6,4468.5,0.001]
[1755299191308,2.23803768,4468.2,4468.0,0.001]
[1755299191509,50.09625748,4468.2,4468.0,0.001]
[1755299191873,51.00585748,4468.2,4468.0,0.001]
[1755299192074,51.00385748,4468.2,4468.0,0.001]
[1755299192986,5.78808777,4468.1,4468.0,0.001]
[1755299193185,36.24248777,4468.1,4468.0,0.001]
[1755299193403,36.69768777,4468.1,4468.0,0.001]
[1755299193805,40.49268777,4468.1,4468.0,0.001]
[1755299194379,2.78853868,4467.2,4467.1,0.04]
[1755299194580,50.08975848,4467.2,4467.1,0.04]
[1755299194781,2.78903989,4466.2,4466.1,0.04]
[1755299195009,3.0,4466.1,4464.0,0.4467]
[1755299195207,2.90154134,4465.2,4464.0,0.4467]
[1755299195440,39.69754134,4465.2,4463.8,0.499]
[1755299195720,5.790043,4464.2,4463.8,0.499]
[1755299196012,39.700043,4464.2,4463.8,0.499]
[1755299196217,40.609643,4464.2,4463.8,0.499]
[1755299196420,36.811643,4464.2,4463.8,0.499]
[1755299196617,36.330343,4464.2,4463.8,0.499]
[1755299196844,40.599643,4464.2,4463.8,0.499]
[1755299197009,2.24019355,4463.9,4463.8,1e-08]
[1755299197346,2.24019355,4463.9,4460.1,0.04]
[1755299197347,0.55,4463.5,4463.1,1e-08]
[1755299197509,5.7905449,4463.2,4463.1,1e-08]
[1755299197844,33.662,4463.2,4463.1,1e-08]
[1755299198033,35.9025449,4463.2,4463.1,1e-08]
[1755299198408,36.3308449,4463.2,4463.1,1e-08]
[1755299198611,33.662,4463.2,4463.1,1e-08]
[1755299199125,36.93,4463.2,4463.1,1e-08]
[1755299199329,36.929,4463.2,4463.1,1e-08]
[1755299199607,37.479,4463.2,4463.1,1e-08]
[1755299200010,40.6181449,4463.2,4463.1,1e-08]
[1755299200249,0.55,4462.6,4460.2,0.4672]
[1755299200433,3.0,4463.1,4460.2,0.4672]
[1755299200434,5.90304701,4462.2,4460.4,0.4335]
[1755299200632,39.72404701,4462.2,4460.4,0.4335]
[1755299200832,40.15234701,4462.2,4460.4,0.4335]
[1755299201036,40.15234701,4462.2,4462.1,1e-08]
[1755299201037,42.33635174,4462.2,4462.1,1e-08]